fUSD/lending_fUSD_20260530
["ID","MTS","AMOUNT","RATE_DAILY","PERIOD"]
[423413213,1780092313000,-150.0,0.00039379,120]
[423413212,1780092313000,-150.0,0.00039379,120]
[423413211,1780092313000,-150.0,0.00039379,120]
[423413225,1780092313000,-1585.16120213,0.00039379,120]
[423413218,1780092313000,-150.0,0.00039379,120]
[423413214,1780092313000,-150.0,0.00039379,120]
[423413227,1780092313000,-2000.0,0.00039379,120]
[423413229,1780092313000,-2000.0,0.00039379,120]
[423413224,1780092313000,-487.0,0.00039379,120]
[423413242,1780092313000,-487.0,0.00039379,120]
[423413241,1780092313000,-487.0,0.00039379,120]
[423413240,1780092313000,-10000.0,0.00039379,120]
[423413237,1780092313000,-487.0,0.00039379,120]
[423413238,1780092313000,-487.0,0.00039379,120]
[423413236,1780092313000,-150.0,0.00039379,120]
[423413239,1780092313000,-487.0,0.00039379,120]
[423413235,1780092313000,-150.0,0.00039379,120]
[423413233,1780092313000,-487.0,0.00039379,120]
[423413231,1780092313000,-3584.37665239,0.00039379,120]
[423413232,1780092313000,-324.73,0.00039379,120]
[423413230,1780092313000,-487.0,0.00039379,120]
[423413228,1780092313000,-2000.0,0.00039379,120]
[423413234,1780092313000,-487.0,0.00039379,120]
[423413255,1780092314000,-1000.0,0.00039379,120]
[423413259,1780092314000,-2249.68,0.00039379,120]
[423413258,1780092314000,-677.42097297,0.00039379,120]
[423413256,1780092314000,-500.0,0.00039379,120]
[423413254,1780092314000,-1000.0,0.00039379,120]
[423413253,1780092314000,-1000.0,0.00039379,120]
[423413251,1780092314000,-487.0,0.00039379,120]
[423413244,1780092314000,-487.0,0.00039379,120]
[423413250,1780092314000,-487.0,0.00039379,120]
[423413247,1780092314000,-13263.0,0.00039379,120]
[423413248,1780092314000,-1250.14692428,0.00039379,120]
[423413246,1780092314000,-487.0,0.00039379,120]
[423413249,1780092314000,-1500.0,0.00039379,120]
[423413245,1780092314000,-184.39992506,0.00039379,120]
[423413243,1780092314000,-487.0,0.00039379,120]
[423413252,1780092314000,-487.0,0.00039379,120]
[423413261,1780092314000,-462.29,0.00039379,120]
[423413257,1780092314000,-10690.14743,0.00039379,120]
[423413262,1780092314000,-1885.89988867,0.00039379,120]
[423413278,1780092314000,-2694.42651847,0.00039379,120]
[423413276,1780092314000,-2694.42651847,0.00039379,120]
[423413275,1780092314000,-2694.42651847,0.00039379,120]
[423413274,1780092314000,-2694.42651847,0.00039379,120]
[423413277,1780092314000,-2694.42651847,0.00039379,120]
[423413271,1780092314000,-2694.42651847,0.00039379,120]
[423413273,1780092314000,-2694.42651847,0.00039379,120]
[423413272,1780092314000,-161.64748617,0.00039379,120]
[423413260,1780092314000,-2850.42,0.00039379,120]
[423413270,1780092314000,-130396.16237831,0.00039379,120]
[423413268,1780092314000,-17763.63,0.00039379,120]
[423413267,1780092314000,-17763.63,0.00039379,120]
[423413264,1780092314000,-1657.88583444,0.00039379,120]
[423413266,1780092314000,-17763.63,0.00039379,120]
[423413265,1780092314000,-17763.63,0.00039379,120]
[423413263,1780092314000,-1546.22774488,0.00039379,120]
[423413269,1780092314000,-17763.63,0.00039379,120]
[423413294,1780092315000,-2694.42651847,0.00039379,120]
[423413293,1780092315000,-2694.42651847,0.00039379,120]
[423413291,1780092315000,-2694.42651847,0.00039379,120]
[423413290,1780092315000,-2694.42651847,0.00039379,120]
[423413292,1780092315000,-2694.42651847,0.00039379,120]
[423413289,1780092315000,-2694.42651847,0.00039379,120]
[423413288,1780092315000,-2694.42651847,0.00039379,120]
[423413284,1780092315000,-2694.42651847,0.00039379,120]
[423413287,1780092315000,-2694.42651847,0.00039379,120]
[423413285,1780092315000,-2694.42651847,0.00039379,120]
[423413283,1780092315000,-2694.42651847,0.00039379,120]
[423413282,1780092315000,-2694.42651847,0.00039379,120]
[423413281,1780092315000,-2694.42651847,0.00039379,120]
[423413279,1780092315000,-2694.42651847,0.00039379,120]
[423413295,1780092315000,-2694.42651847,0.00039379,120]
[423413286,1780092315000,-2694.42651847,0.00039379,120]
[423413280,1780092315000,-2694.42651847,0.00039379,120]
[423413296,1780092315000,-2694.42651847,0.00039379,120]
[423413297,1780092315000,-2694.42651847,0.00039379,120]
[423413298,1780092315000,-2694.42651847,0.00039379,120]
[423413314,1780092315000,-2694.42651847,0.00039379,120]
[423413313,1780092315000,-2694.42651847,0.00039379,120]
[423413312,1780092315000,-2694.42651847,0.00039379,120]
[423413311,1780092315000,-2694.42651847,0.00039379,120]
[423413310,1780092315000,-2694.42651847,0.00039379,120]
[423413309,1780092315000,-2694.42651847,0.00039379,120]
[423413307,1780092315000,-2694.42651847,0.00039379,120]
[423413308,1780092315000,-2694.42651847,0.00039379,120]
[423413304,1780092315000,-2694.42651847,0.00039379,120]
[423413305,1780092315000,-2694.42651847,0.00039379,120]
[423413302,1780092315000,-2694.42651847,0.00039379,120]
[423413301,1780092315000,-2694.42651847,0.00039379,120]
[423413300,1780092315000,-2694.42651847,0.00039379,120]
[423413303,1780092315000,-2694.42651847,0.00039379,120]
[423413299,1780092315000,-2694.42651847,0.00039379,120]
[423413306,1780092315000,-2694.42651847,0.00039379,120]
[423413325,1780092316000,-336.80331478,0.00039379,120]
[423413331,1780092316000,-2436.80901633,0.00039379,120]
[423413329,1780092316000,-2436.80901633,0.00039379,120]
[423413326,1780092316000,-336.80331478,0.00039379,120]
[423413327,1780092316000,-336.80331478,0.00039379,120]
[423413328,1780092316000,-336.80331478,0.00039379,120]
[423413323,1780092316000,-336.80331478,0.00039379,120]
[423413332,1780092316000,-2436.80901633,0.00039379,120]
[423413322,1780092316000,-336.80331478,0.00039379,120]
[423413319,1780092316000,-2694.42651847,0.00039379,120]
[423413321,1780092316000,-336.80331478,0.00039379,120]
[423413320,1780092316000,-2694.42651847,0.00039379,120]
[423413318,1780092316000,-2694.42651847,0.00039379,120]
[423413317,1780092316000,-2694.42651847,0.00039379,120]
[423413316,1780092316000,-2694.42651847,0.00039379,120]
[423413324,1780092316000,-336.80331478,0.00039379,120]
[423413330,1780092316000,-2436.80901633,0.00039379,120]
[423413315,1780092316000,-2694.42651847,0.00039379,120]
[423413336,1780092316000,-212.89904175,0.00039379,120]
[423413333,1780092316000,-2436.80901633,0.00039379,120]
[423413350,1780092316000,-1183.38464936,0.00039379,120]
[423413349,1780092316000,-1183.38464936,0.00039379,120]
[423413348,1780092316000,-1183.38464936,0.00039379,120]
[423413347,1780092316000,-1183.38464936,0.00039379,120]
[423413345,1780092316000,-1183.38464936,0.00039379,120]
[423413346,1780092316000,-1183.38464936,0.00039379,120]
[423413343,1780092316000,-1183.38464936,0.00039379,120]
[423413351,1780092316000,-1183.38464936,0.00039379,120]
[423413341,1780092316000,-1183.38464936,0.00039379,120]
[423413342,1780092316000,-1183.38464936,0.00039379,120]
[423413340,1780092316000,-212.89904175,0.00039379,120]
[423413338,1780092316000,-212.89904175,0.00039379,120]
[423413337,1780092316000,-1183.38464936,0.00039379,120]
[423413339,1780092316000,-1183.38464936,0.00039379,120]
[423413335,1780092316000,-2436.8090163,0.00039379,120]
[423413334,1780092316000,-2436.80901633,0.00039379,120]
[423413344,1780092316000,-1183.38464936,0.00039379,120]
[423413364,1780092317000,-1183.38464936,0.00039379,120]
[423413363,1780092317000,-1183.38464936,0.00039379,120]
[423413362,1780092317000,-1183.38464936,0.00039379,120]
[423413361,1780092317000,-1183.38464936,0.00039379,120]
[423413360,1780092317000,-1183.38464936,0.00039379,120]
[423413359,1780092317000,-1183.38464936,0.00039379,120]
[423413353,1780092317000,-1183.38464936,0.00039379,120]
[423413358,1780092317000,-1183.38464936,0.00039379,120]
[423413356,1780092317000,-1183.38464936,0.00039379,120]
[423413355,1780092317000,-1183.38464936,0.00039379,120]
[423413354,1780092317000,-1183.38464936,0.00039379,120]
[423413352,1780092317000,-1183.38464936,0.00039379,120]
[423413365,1780092317000,-1183.38464936,0.00039379,120]
[423413357,1780092317000,-1183.38464936,0.00039379,120]
[423413367,1780092317000,-1183.38464936,0.00039379,120]
[423413366,1780092317000,-1183.38464936,0.00039379,120]
[423413368,1780092317000,-169.05494989,0.00039379,120]
[423413380,1780092317000,-1204.57,0.00039379,120]
[423413381,1780092317000,-23948.06,0.00039379,120]
[423413382,1780092317000,-1000.0,0.00039379,120]
[423413377,1780092317000,-4837.57,0.00039379,120]
[423413378,1780092317000,-9573.3,0.00039379,120]
[423413376,1780092317000,-4837.57,0.00039379,120]
[423413379,1780092317000,-24031.75,0.00039379,120]
[423413373,1780092317000,-169.05494989,0.00039379,120]
[423413372,1780092317000,-169.05494989,0.00039379,120]
[423413375,1780092317000,-4837.57,0.00039379,120]
[423413371,1780092317000,-169.05494989,0.00039379,120]
[423413369,1780092317000,-169.05494989,0.00039379,120]
[423413370,1780092317000,-169.05494989,0.00039379,120]
[423413374,1780092317000,-169.05494987,0.00039379,120]
[423413393,1780092318000,-150.1321572,0.00039379,120]
[423413398,1780092318000,-1388.6720146,0.00039379,120]
[423413396,1780092318000,-1388.6720146,0.00039379,120]
[423413397,1780092318000,-1388.6720146,0.00039379,120]
[423413395,1780092318000,-1388.6720146,0.00039379,120]
[423413394,1780092318000,-1388.6720146,0.00039379,120]
[423413392,1780092318000,-16888.0,0.00039379,120]
[423413391,1780092318000,-1642.57,0.00039379,120]
[423413385,1780092318000,-191.75779813,0.00039379,120]
[423413387,1780092318000,-7004.99,0.00039379,120]
[423413388,1780092318000,-16888.0,0.00039379,120]
[423413389,1780092318000,-1130.63,0.00039379,120]
[423413384,1780092318000,-10002.59,0.00039379,120]
[423413386,1780092318000,-36606.63,0.00039379,120]
[423413400,1780092318000,-1388.6720146,0.00039379,120]
[423413383,1780092318000,-48111.51,0.00039379,120]
[423413390,1780092318000,-974.37,0.00039379,120]
[423413399,1780092318000,-1388.6720146,0.00039379,120]
[423413401,1780092318000,-1388.6720146,0.00039379,120]
[423413403,1780092318000,-1388.6720146,0.00039379,120]
[423413419,1780092318000,-1388.6720146,0.00039379,120]
[423413418,1780092318000,-1388.6720146,0.00039379,120]
[423413417,1780092318000,-1388.6720146,0.00039379,120]
[423413415,1780092318000,-1388.6720146,0.00039379,120]
[423413416,1780092318000,-1388.6720146,0.00039379,120]
[423413414,1780092318000,-1388.6720146,0.00039379,120]
[423413411,1780092318000,-1388.6720146,0.00039379,120]
[423413412,1780092318000,-1388.6720146,0.00039379,120]
[423413421,1780092318000,-1388.6720146,0.00039379,120]
[423413410,1780092318000,-1388.6720146,0.00039379,120]
[423413413,1780092318000,-1388.6720146,0.00039379,120]
[423413404,1780092318000,-1388.6720146,0.00039379,120]
[423413420,1780092318000,-1388.6720146,0.00039379,120]
[423413405,1780092318000,-1388.6720146,0.00039379,120]
[423413402,1780092318000,-1388.6720146,0.00039379,120]
[423413409,1780092318000,-1388.6720146,0.00039379,120]
[423413408,1780092318000,-1388.6720146,0.00039379,120]
[423413407,1780092318000,-1388.6720146,0.00039379,120]
[423413406,1780092318000,-1388.6720146,0.00039379,120]
[423413440,1780092319000,-15796.08873365,0.00039379,120]
[423413438,1780092319000,-1831.21,0.00039379,120]
[423413434,1780092319000,-248.71588776,0.00039379,120]
[423413436,1780092319000,-422.29861062,0.00039379,120]
[423413435,1780092319000,-2108.61,0.00039379,120]
[423413433,1780092319000,-173.58400181,0.00039379,120]
[423413432,1780092319000,-473.12034069,0.00039379,120]
[423413430,1780092319000,-200.13318482,0.00039379,120]
[423413429,1780092319000,-173.58400182,0.00039379,120]
[423413428,1780092319000,-173.58400182,0.00039379,120]
[423413427,1780092319000,-173.58400182,0.00039379,120]
[423413425,1780092319000,-173.58400182,0.00039379,120]
[423413424,1780092319000,-173.58400182,0.00039379,120]
[423413423,1780092319000,-173.58400182,0.00039379,120]
[423413422,1780092319000,-1388.6720146,0.00039379,120]
[423413439,1780092319000,-54507.03116147,0.00039379,120]
[423413431,1780092319000,-829.12,0.00039379,120]
[423413426,1780092319000,-173.58400182,0.00039379,120]
[423413442,1780092319000,-182.19915312,0.00039379,120]
[423413444,1780092319000,-182.19915312,0.00039379,120]
[423413437,1780092319000,-720.22,0.00039379,120]
[423413457,1780092319000,-201.69841994,0.00039379,120]
[423413458,1780092319000,-974.79619343,0.00039379,120]
[423413455,1780092319000,-305.16568253,0.00039379,120]
[423413456,1780092319000,-600.0,0.00039379,120]
[423413454,1780092319000,-305.16568253,0.00039379,120]
[423413453,1780092319000,-305.16568253,0.00039379,120]
[423413452,1780092319000,-305.16568253,0.00039379,120]
[423413459,1780092319000,-152.17292501,0.00039379,120]
[423413449,1780092319000,-305.16568253,0.00039379,120]
[423413450,1780092319000,-305.16568253,0.00039379,120]
[423413447,1780092319000,-228.17912112,0.00039379,120]
[423413448,1780092319000,-305.16568253,0.00039379,120]
[423413446,1780092319000,-182.19915312,0.00039379,120]
[423413445,1780092319000,-228.17912113,0.00039379,120]
[423413441,1780092319000,-275.69624268,0.00039379,120]
[423413443,1780092319000,-228.17912113,0.00039379,120]
[423413451,1780092319000,-305.16568253,0.00039379,120]
[423413478,1780092320000,-255.53313993,0.00039379,120]
[423413473,1780092320000,-3232.17,0.00039379,120]
[423413472,1780092320000,-458056.9987793,0.00039379,120]
[423413474,1780092320000,-156.09907572,0.00039379,120]
[423413471,1780092320000,-450878.12869736,0.00039379,120]
[423413468,1780092320000,-40571.41,0.00039379,120]
[423413475,1780092320000,-278.78365018,0.00039379,120]
[423413465,1780092320000,-152.17292501,0.00039379,120]
[423413464,1780092320000,-152.17292501,0.00039379,120]
[423413467,1780092320000,-13700.59817032,0.00039379,120]
[423413466,1780092320000,-489.55218619,0.00039379,120]
[423413463,1780092320000,-152.17292501,0.00039379,120]
[423413462,1780092320000,-152.17292501,0.00039379,120]
[423413461,1780092320000,-152.17292501,0.00039379,120]
[423413460,1780092320000,-152.17292501,0.00039379,120]
[423413469,1780092320000,-6054.52800042,0.00039379,120]
[423413477,1780092320000,-156.09907572,0.00039379,120]
[423413470,1780092320000,-5092.58265461,0.00039379,120]
[423413479,1780092320000,-278.78365018,0.00039379,120]
[423413476,1780092320000,-255.53313993,0.00039379,120]
[423413496,1780092320000,-10375.06113321,0.00039379,120]
[423413495,1780092320000,-19857.64,0.00039379,120]
[423413493,1780092320000,-19857.64,0.00039379,120]
[423413491,1780092320000,-278.78365018,0.00039379,120]
[423413492,1780092320000,-19857.64,0.00039379,120]
[423413489,1780092320000,-278.78365018,0.00039379,120]
[423413490,1780092320000,-156.09907572,0.00039379,120]
[423413494,1780092320000,-19857.64,0.00039379,120]
[423413488,1780092320000,-156.09907572,0.00039379,120]
[423413486,1780092320000,-278.78365018,0.00039379,120]
[423413484,1780092320000,-278.78365018,0.00039379,120]
[423413483,1780092320000,-156.09907572,0.00039379,120]
[423413485,1780092320000,-156.09907572,0.00039379,120]
[423413482,1780092320000,-278.78365018,0.00039379,120]
[423413481,1780092320000,-255.53313993,0.00039379,120]
[423413480,1780092320000,-156.09907572,0.00039379,120]
[423413487,1780092320000,-278.78365018,0.00039379,120]
[423413512,1780092321000,-500.0,0.00039379,120]
[423413511,1780092321000,-500.0,0.00039379,120]
[423413509,1780092321000,-500.0,0.00039379,120]
[423413510,1780092321000,-500.0,0.00039379,120]
[423413508,1780092321000,-500.0,0.00039379,120]
[423413507,1780092321000,-500.0,0.00039379,120]
[423413505,1780092321000,-500.0,0.00039379,120]
[423413500,1780092321000,-6500.00725094,0.00039379,120]
[423413503,1780092321000,-500.0,0.00039379,120]
[423413501,1780092321000,-69338.20902874,0.00039379,120]
[423413502,1780092321000,-10710.93250876,0.00039379,120]
[423413498,1780092321000,-106656.86015834,0.00039379,120]
[423413499,1780092321000,-335.86217301,0.00039379,120]
[423413497,1780092321000,-5241.09744672,0.00039379,120]
[423413514,1780092321000,-500.0,0.00039379,120]
[423413504,1780092321000,-500.0,0.00039379,120]
[423413513,1780092321000,-500.0,0.00039379,120]
[423413506,1780092321000,-500.0,0.00039379,120]
[423413515,1780092321000,-500.0,0.00039379,120]
[423413532,1780092321000,-500.0,0.00039379,120]
[423413531,1780092321000,-500.0,0.00039379,120]
[423413530,1780092321000,-500.0,0.00039379,120]
[423413528,1780092321000,-500.0,0.00039379,120]
[423413527,1780092321000,-500.0,0.00039379,120]
[423413526,1780092321000,-500.0,0.00039379,120]
[423413524,1780092321000,-500.0,0.00039379,120]
[423413533,1780092321000,-500.0,0.00039379,120]
[423413529,1780092321000,-500.0,0.00039379,120]
[423413523,1780092321000,-500.0,0.00039379,120]
[423413525,1780092321000,-500.0,0.00039379,120]
[423413517,1780092321000,-500.0,0.00039379,120]
[423413519,1780092321000,-500.0,0.00039379,120]
[423413520,1780092321000,-500.0,0.00039379,120]
[423413516,1780092321000,-500.0,0.00039379,120]
[423413518,1780092321000,-500.0,0.00039379,120]
[423413521,1780092321000,-500.0,0.00039379,120]
[423413522,1780092321000,-500.0,0.00039379,120]
[423413534,1780092322000,-500.0,0.00039379,120]
[423413535,1780092322000,-500.0,0.00039379,120]
[423413537,1780092322000,-500.0,0.00039379,120]
[423413538,1780092322000,-500.0,0.00039379,120]
[423413540,1780092322000,-500.0,0.00039379,120]
[423413539,1780092322000,-500.0,0.00039379,120]
[423413542,1780092322000,-500.0,0.00039379,120]
[423413541,1780092322000,-500.0,0.00039379,120]
[423413544,1780092322000,-500.0,0.00039379,120]
[423413536,1780092322000,-500.0,0.00039379,120]
[423413545,1780092322000,-500.0,0.00039379,120]
[423413547,1780092322000,-500.0,0.00039379,120]
[423413543,1780092322000,-500.0,0.00039379,120]
[423413554,1780092322000,-500.0,0.00039379,120]
[423413552,1780092322000,-500.0,0.00039379,120]
[423413550,1780092322000,-500.0,0.00039379,120]
[423413553,1780092322000,-500.0,0.00039379,120]
[423413549,1780092322000,-500.0,0.00039379,120]
[423413548,1780092322000,-500.0,0.00039379,120]
[423413546,1780092322000,-500.0,0.00039379,120]
[423413551,1780092322000,-500.0,0.00039379,120]
[423413563,1780092323000,-500.0,0.00039379,120]
[423413568,1780092323000,-500.0,0.00039379,120]
[423413569,1780092323000,-500.0,0.00039379,120]
[423413566,1780092323000,-500.0,0.00039379,120]
[423413567,1780092323000,-500.0,0.00039379,120]
[423413565,1780092323000,-500.0,0.00039379,120]
[423413564,1780092323000,-500.0,0.00039379,120]
[423413560,1780092323000,-500.0,0.00039379,120]
[423413561,1780092323000,-500.0,0.00039379,120]
[423413559,1780092323000,-500.0,0.00039379,120]
[423413571,1780092323000,-500.0,0.00039379,120]
[423413558,1780092323000,-500.0,0.00039379,120]
[423413556,1780092323000,-500.0,0.00039379,120]
[423413557,1780092323000,-500.0,0.00039379,120]
[423413555,1780092323000,-500.0,0.00039379,120]
[423413562,1780092323000,-500.0,0.00039379,120]
[423413570,1780092323000,-500.0,0.00039379,120]
[423413585,1780092323000,-157.71798274,0.00039379,120]
[423413574,1780092323000,-500.0,0.00039379,120]
[423413588,1780092323000,-157.71798274,0.00039379,120]
[423413587,1780092323000,-157.71798274,0.00039379,120]
[423413586,1780092323000,-157.71798274,0.00039379,120]
[423413584,1780092323000,-1124.0,0.00039379,120]
[423413583,1780092323000,-151.0,0.00039379,120]
[423413581,1780092323000,-469037.08043845,0.00039379,120]
[423413582,1780092323000,-64898.09336252,0.00039379,120]
[423413589,1780092323000,-157.71798274,0.00039379,120]
[423413579,1780092323000,-500.0,0.00039379,120]
[423413580,1780092323000,-399.77380819,0.00039379,120]
[423413573,1780092323000,-500.0,0.00039379,120]
[423413575,1780092323000,-500.0,0.00039379,120]
[423413572,1780092323000,-500.0,0.00039379,120]
[423413578,1780092323000,-500.0,0.00039379,120]
[423413577,1780092323000,-500.0,0.00039379,120]
[423413576,1780092323000,-500.0,0.00039379,120]
[423413602,1780092324000,-9928.83,0.00039379,120]
[423413603,1780092324000,-4320.0,0.00039379,120]
[423413601,1780092324000,-9928.83,0.00039379,120]
[423413600,1780092324000,-152.5,0.00039379,120]
[423413598,1780092324000,-500.0,0.00039379,120]
[423413599,1780092324000,-270.0,0.00039379,120]
[423413595,1780092324000,-36912.12269478,0.00039379,120]
[423413596,1780092324000,-21226.89606445,0.00039379,120]
[423413593,1780092324000,-347598.474511,0.00039379,120]
[423413591,1780092324000,-157.71798271,0.00039379,120]
[423413592,1780092324000,-5000.0,0.00039379,120]
[423413590,1780092324000,-157.71798274,0.00039379,120]
[423413604,1780092324000,-250.99703323,0.00039379,120]
[423413597,1780092324000,-13384.61982669,0.00039379,120]
[423413594,1780092324000,-500.0,0.00039379,120]
[423413606,1780092324000,-1499.999999,0.00039379,120]
[423413607,1780092324000,-3000.0,0.00039379,120]
[423413605,1780092324000,-22220.93649669,0.00039379,120]
[423413622,1780092324000,-150.0,0.00039379,120]
[423413618,1780092324000,-700.0,0.00039379,120]
[423413620,1780092324000,-150.0,0.00039379,120]
[423413619,1780092324000,-150.0,0.00039379,120]
[423413616,1780092324000,-596.66,0.00039379,120]
[423413617,1780092324000,-2597.42,0.00039379,120]
[423413621,1780092324000,-150.0,0.00039379,120]
[423413615,1780092324000,-150.0,0.00039379,120]
[423413613,1780092324000,-150.0,0.00039379,120]
[423413611,1780092324000,-600.0,0.00039379,120]
[423413612,1780092324000,-150.0,0.00039379,120]
[423413610,1780092324000,-3000.0,0.00039379,120]
[423413608,1780092324000,-3000.0,0.00039379,120]
[423413609,1780092324000,-3000.0,0.00039379,120]
[423413614,1780092324000,-150.0,0.00039379,120]
[423413635,1780092325000,-150.0,0.00039379,120]
[423413638,1780092325000,-150.0,0.00039379,120]
[423413639,1780092325000,-2930.75,0.00039379,120]
[423413637,1780092325000,-812.22,0.00039379,120]
[423413636,1780092325000,-2224.39,0.00039379,120]
[423413633,1780092325000,-150.0,0.00039379,120]
[423413632,1780092325000,-150.0,0.00039379,120]
[423413634,1780092325000,-150.0,0.00039379,120]
[423413624,1780092325000,-150.0,0.00039379,120]
[423413630,1780092325000,-150.0,0.00039379,120]
[423413629,1780092325000,-150.0,0.00039379,120]
[423413628,1780092325000,-150.0,0.00039379,120]
[423413627,1780092325000,-150.0,0.00039379,120]
[423413626,1780092325000,-150.0,0.00039379,120]
[423413625,1780092325000,-150.0,0.00039379,120]
[423413623,1780092325000,-150.0,0.00039379,120]
[423413631,1780092325000,-150.0,0.00039379,120]
[423413640,1780092325000,-150.0,0.00039379,120]
[423413644,1780092325000,-150.0,0.00039379,120]
[423413642,1780092325000,-150.0,0.00039379,120]
[423413659,1780092325000,-1837.43,0.00039379,120]
[423413658,1780092325000,-1318.16,0.00039379,120]
[423413655,1780092325000,-2871.12,0.00039379,120]
[423413657,1780092325000,-2071.17,0.00039379,120]
[423413656,1780092325000,-2817.61,0.00039379,120]
[423413654,1780092325000,-2760.16,0.00039379,120]
[423413652,1780092325000,-2625.34,0.00039379,120]
[423413651,1780092325000,-2902.0,0.00039379,120]
[423413641,1780092325000,-2324.44,0.00039379,120]
[423413648,1780092325000,-1979.61,0.00039379,120]
[423413650,1780092325000,-660.18,0.00039379,120]
[423413647,1780092325000,-150.0,0.00039379,120]
[423413649,1780092325000,-150.0,0.00039379,120]
[423413645,1780092325000,-644.16,0.00039379,120]
[423413646,1780092325000,-2942.63,0.00039379,120]
[423413643,1780092325000,-2965.85,0.00039379,120]
[423413653,1780092325000,-490.82,0.00039379,120]
[423413674,1780092326000,-408.6739615,0.00039379,120]
[423413673,1780092326000,-434.06315068,0.00039379,120]
[423413671,1780092326000,-3452.24167104,0.00039379,120]
[423413670,1780092326000,-2051.92,0.00039379,120]
[423413669,1780092326000,-1229.72,0.00039379,120]
[423413667,1780092326000,-1443.17,0.00039379,120]
[423413666,1780092326000,-1057.29,0.00039379,120]
[423413663,1780092326000,-340.63,0.00039379,120]
[423413665,1780092326000,-1012.15,0.00039379,120]
[423413664,1780092326000,-2740.94,0.00039379,120]
[423413675,1780092326000,-369.86314418,0.00039379,120]
[423413662,1780092326000,-1184.1,0.00039379,120]
[423413661,1780092326000,-2934.87,0.00039379,120]
[423413660,1780092326000,-1792.25,0.00039379,120]
[423413668,1780092326000,-2353.67,0.00039379,120]
[423413676,1780092326000,-1348.64,0.00039379,120]
[423413672,1780092326000,-19001.18510509,0.00039379,120]
[423413678,1780092326000,-1348.64,0.00039379,120]
[423413693,1780092326000,-2757.73726004,0.00039379,120]
[423413677,1780092326000,-1348.64,0.00039379,120]
[423413691,1780092326000,-2757.73726004,0.00039379,120]
[423413690,1780092326000,-2757.73726004,0.00039379,120]
[423413692,1780092326000,-2757.73726004,0.00039379,120]
[423413687,1780092326000,-1805.0,0.00039379,120]
[423413686,1780092326000,-36223.0,0.00039379,120]
[423413688,1780092326000,-896.57059279,0.00039379,120]
[423413689,1780092326000,-2757.73726004,0.00039379,120]
[423413685,1780092326000,-9204.0,0.00039379,120]
[423413683,1780092326000,-500.0,0.00039379,120]
[423413681,1780092326000,-1348.64,0.00039379,120]
[423413680,1780092326000,-1348.64,0.00039379,120]
[423413682,1780092326000,-1993.15660074,0.00039379,120]
[423413679,1780092326000,-1348.64,0.00039379,120]
[423413684,1780092326000,-2655.0,0.00039379,120]
[423413701,1780092327000,-2757.73726004,0.00039379,120]
[423413709,1780092327000,-2757.73726004,0.00039379,120]
[423413706,1780092327000,-2757.73726004,0.00039379,120]
[423413707,1780092327000,-2757.73726004,0.00039379,120]
[423413705,1780092327000,-2757.73726004,0.00039379,120]
[423413704,1780092327000,-2757.73726004,0.00039379,120]
[423413700,1780092327000,-2757.73726004,0.00039379,120]
[423413695,1780092327000,-2757.73726004,0.00039379,120]
[423413702,1780092327000,-2757.73726004,0.00039379,120]
[423413698,1780092327000,-2757.73726004,0.00039379,120]
[423413699,1780092327000,-2757.73726004,0.00039379,120]
[423413697,1780092327000,-2757.73726004,0.00039379,120]
[423413696,1780092327000,-2757.73726004,0.00039379,120]
[423413694,1780092327000,-2757.73726004,0.00039379,120]
[423413710,1780092327000,-2757.73726004,0.00039379,120]
[423413703,1780092327000,-2757.73726004,0.00039379,120]
[423413711,1780092327000,-2757.73726004,0.00039379,120]
[423413708,1780092327000,-2757.73726004,0.00039379,120]
[423413714,1780092327000,-2757.73726004,0.00039379,120]
[423413729,1780092327000,-2757.73726004,0.00039379,120]
[423413728,1780092327000,-2757.73726004,0.00039379,120]
[423413726,1780092327000,-2757.73726004,0.00039379,120]
[423413723,1780092327000,-2757.73726004,0.00039379,120]
[423413725,1780092327000,-2757.73726004,0.00039379,120]
[423413724,1780092327000,-2757.73726004,0.00039379,120]
[423413722,1780092327000,-2757.73726004,0.00039379,120]